fUST/lending_fUST_20251109
["ID","MTS","AMOUNT","RATE_DAILY","PERIOD"]
[393421384,1762642238153,-151.0,0.00023408,2]
[393421385,1762642238163,-151.0,0.00023408,2]
[393421386,1762642238174,-151.0,0.00023408,2]
[393421387,1762642238183,-151.0,0.00023408,2]
[393421388,1762642238193,-151.0,0.00023408,2]
[393421389,1762642238203,-151.0,0.00023408,2]
[393421390,1762642238212,-151.0,0.00023408,2]
[393421391,1762642238222,-151.0,0.00023408,2]
[393421392,1762642238231,-151.0,0.00023408,2]
[393421393,1762642238241,-151.0,0.00023408,2]
[393421394,1762642238250,-151.0,0.00023408,2]
[393421395,1762642238260,-151.0,0.00023408,2]
[393421396,1762642238269,-151.0,0.00023408,2]
[393421397,1762642238279,-151.0,0.00023408,2]
[393421398,1762642238288,-151.0,0.00023408,2]
[393421399,1762642238298,-226.39,0.00023412,10]
[393421400,1762642238307,-188.65,0.00023412,10]
[393421401,1762642238316,-157.21,0.00023412,10]
[393421402,1762642238326,-23424.88959856,0.00023412,2]
[393421403,1762642238335,-401.20235081,0.00023421,2]
[393421404,1762642238344,-235.29976762,0.00023421,2]
[393421405,1762642238354,-574.89868092,0.00023421,2]
[393421406,1762642238363,-269.94672441,0.00023421,2]
[393421407,1762642238373,-102053.01446298,0.00023422,2]
[393421444,1762642240242,-1202.22657072,0.00023422,2]
[393421568,1762642244783,-68361.3676531,0.00023422,2]
[393421569,1762642244955,-798.18865466,0.00023422,2]
[393421570,1762642244967,-633.13469366,0.00023422,2]
[393421571,1762642244977,-417.38941945,0.00023473,2]
[393421572,1762642244987,-400.48003533,0.0002352,2]
[393421573,1762642244996,-153.57,0.000236,7]
[393421574,1762642245006,-866.78,0.000236,7]
[393421575,1762642245016,-404.78293226,0.00023629,2]
[393421576,1762642245026,-728.60927807,0.00023629,2]
[393421577,1762642245036,-1295.30538323,0.00023629,2]
[393421578,1762642245045,-2021.89074663,0.00023629,2]
[393421580,1762642245055,-257.82281083,0.00023642,2]
[393421581,1762642245064,-13904.79576368,0.0002374,2]
[393421582,1762642245074,-786.09,0.00024097,10]
[393421583,1762642245084,-168.0,0.000241,2]
[393421584,1762642245093,-13904.79576368,0.00024107,2]
[393421585,1762642245103,-13904.79576368,0.00024473,2]
[393421586,1762642245112,-168.0,0.00024515,2]
[393421587,1762642245122,-204.0,0.00024571,2]
[393421588,1762642245131,-168.0,0.00024588,2]
[393421589,1762642245141,-168.0,0.00024674,2]
[393421590,1762642245150,-168.0,0.00024678,2]
[393421591,1762642245159,-0.3013296,0.00024785,2]
[393421592,1762642245171,-167.6986704,0.00024785,2]
[393421593,1762642245181,-3076.20132961,0.0002484,2]
[393421607,1762642585740,308.565273,0.00013699,2]
[393421625,1762643191137,-237.52958368,0.00019588,2]
[393421693,1762643432353,-2288.031666,0.00019198,2]
[393421713,1762643438285,-2711.968334,0.00019198,2]
[393421714,1762643438295,-150.0,0.00019615,2]
[393421715,1762643438306,-308.565273,0.00020187,2]
[393421716,1762643438315,-177.0,0.00021615,2]
[393421717,1762643438324,-184.827166,0.00022102,2]
[393421718,1762643438335,-300.0,0.0002321,2]
[393421719,1762643438346,-1200.0,0.0002321,2]
[393421720,1762643438356,-2165.71888683,0.00023211,2]
[393421722,1762643438366,-2165.71888681,0.00023227,2]
[393421723,1762643438376,-500.0,0.00023241,2]
[393421724,1762643438386,-500.0,0.00023241,2]
[393421725,1762643438396,-500.0,0.00023241,2]
[393421726,1762643438406,-500.0,0.00023241,2]
[393421727,1762643438416,-500.0,0.00023241,2]
[393421728,1762643438426,-500.0,0.00023241,2]
[393421729,1762643438435,-500.0,0.00023241,2]
[393421730,1762643438446,-500.0,0.00023241,2]
[393421731,1762643438455,-374.88431625,0.00023241,2]
[393421732,1762643438465,-500.0,0.00023241,2]
[393421733,1762643438475,-500.0,0.00023241,2]
[393421734,1762643438485,-500.0,0.00023241,2]
[393421735,1762643438495,-500.0,0.00023241,2]
[393421736,1762643438504,-500.0,0.00023241,2]
[393421737,1762643438514,-500.0,0.00023241,2]
[393421738,1762643438523,-500.0,0.00023241,2]
[393421739,1762643438533,-500.0,0.00023241,2]
[393421740,1762643438543,-500.0,0.00023241,2]
[393421741,1762643438553,-500.0,0.00023241,2]
[393421742,1762643438563,-500.0,0.00023241,2]
[393421743,1762643438572,-500.0,0.00023241,2]
[393421744,1762643438581,-222.36328863,0.00023241,2]
[393421745,1762643438593,-277.63671137,0.00023241,2]
[393421746,1762643438603,-500.0,0.00023241,2]
[393421747,1762643438612,-500.0,0.00023241,2]
[393421748,1762643438622,-500.0,0.00023241,2]
[393421749,1762643438631,-500.0,0.00023241,2]
[393421750,1762643438640,-491.48120275,0.00023241,2]
[393421751,1762643438650,-500.0,0.00023241,2]
[393421752,1762643438660,-500.0,0.00023241,2]
[393421753,1762643438670,-572.54709587,0.00023241,2]
[393421754,1762643438680,-500.0,0.00023241,2]
[393421755,1762643438689,-500.0,0.00023241,2]
[393421756,1762643438699,-500.0,0.00023241,2]
[393421757,1762643438709,-600.0,0.00023241,2]
[393421758,1762643438720,-499.99999999,0.00023241,2]
[393421759,1762643438729,-40532.61406267,0.00023242,2]
[393421760,1762643438740,-5497.05552206,0.00023242,2]
[393421761,1762643438752,-3595.6870007,0.00023242,2]
[393421762,1762643438763,-2165.71888681,0.00023242,2]
[393421763,1762643438772,-2165.71888681,0.00023258,2]
[393421764,1762643438782,-500.0,0.00023273,2]
[393421765,1762643438792,-2165.71888681,0.00023273,2]
[393421766,1762643438802,-151.0,0.00023298,2]
[393421767,1762643438817,-177.53843041,0.00023298,2]
[393421768,1762643438827,-40034.33340379,0.00023299,7]
[393421769,1762643438837,-328.01610158,0.0002331,2]
[393421770,1762643438848,-255.69023671,0.00023311,2]
[393421771,1762643438858,-1021.18734672,0.00023312,2]
[393421772,1762643438870,-1012.2,0.00023312,2]
[393421776,1762643440507,-849.87,0.00023302,10]
[393421777,1762643440517,-6549.20766806,0.00023312,2]
[393421778,1762643440567,-518.82147696,0.00023312,2]
[393421780,1762643440578,-1691.91914094,0.00023312,2]
[393421821,1762643446581,-9400.76094394,0.00023312,2]
[393421997,1762644236835,150000.0,0.00036737,60]
[393422078,1762644518826,249.0,0.0002,120]
[393422106,1762644632467,-1643.47264835,0.00021934,2]
[393422109,1762644632478,-302.52043825,0.00021934,2]
[393422115,1762644632554,-1241.4874039,0.00021934,2]
[393422117,1762644632566,-351.14740077,0.00021934,2]
[393422148,1762644638365,-1461.37210873,0.00021934,2]
[393422149,1762644638375,-326.93934112,0.00022,5]
[393422150,1762644638387,-1873.25827454,0.00022,5]
[393422151,1762644638398,-369.70097279,0.00022,5]
[393422152,1762644638449,-1364.2807465,0.00022,5]
[393422153,1762644638459,-307.02615227,0.00022156,2]
[393422154,1762644638468,-131.99095726,0.00022413,2]
[393422220,1762644645475,-5000.0,0.00022189,2]
[393422222,1762644645484,-18.00904274,0.00022413,2]
[393422224,1762644645494,-592.401,0.00022809,2]
[393422226,1762644645504,-798.54616415,0.00023209,2]
[393422228,1762644645513,-342.2240456,0.00023243,30]
[393422230,1762644645522,-392.42695724,0.000234,7]
[393422237,1762644645581,-387.67304276,0.000234,7]
[393422239,1762644645590,-206.32011377,0.00023642,2]
[393422241,1762644645599,-165.0,0.00024,7]
[393422243,1762644645609,-159.02183137,0.00024066,2]
[393422479,1762645837666,-2722.89948426,0.00021118,4]
[393422602,1762645844583,-2277.10051574,0.00021118,4]
[393422603,1762645844593,-462.75728168,0.00021331,4]
[393422604,1762645844602,-150.0,0.00021874,2]
[393422606,1762645844611,-550.8182673,0.00023494,2]
[393422608,1762645844620,-229.60033629,0.00023642,2]
[393422610,1762645844629,-177.0,0.00023874,2]
[393422612,1762645844638,-75.97816863,0.00024066,2]
[393422614,1762645844647,-235.0,0.00024321,2]
[393422616,1762645844656,-1200.0,0.00024498,2]
[393422618,1762645844665,-235.0,0.00024502,2]
[393422620,1762645844674,-300.0,0.00024595,2]
[393422622,1762645844690,-300.0,0.00024595,2]
[393422624,1762645844699,-300.0,0.00024595,2]
[393422625,1762645844709,-1088.0,0.00024596,2]
[393422626,1762645844722,-7756.56086751,0.00024597,2]
[393422627,1762645844730,-500.0,0.00024673,2]
[393422628,1762645844739,-624.65067475,0.00024673,2]
[393422629,1762645844748,-500.0,0.00024696,2]
[393422630,1762645844758,-500.0,0.00024696,2]
[393422631,1762645844769,-500.0,0.00024696,2]
[393422632,1762645844780,-500.0,0.00024696,2]
[393422633,1762645844793,-500.0,0.00024696,2]
[393422634,1762645844802,-500.0,0.00024696,2]
[393422635,1762645844811,-500.0,0.00024696,2]
[393422636,1762645844820,-500.0,0.00024696,2]
[393422637,1762645844830,-500.0,0.00024696,2]
[393422638,1762645844840,-500.0,0.00024696,2]
[393422639,1762645844849,-500.0,0.00024696,2]
[393422640,1762645844859,-500.0,0.00024696,2]
[393422641,1762645844874,-500.0,0.00024696,2]
[393422642,1762645844883,-500.0,0.00024696,2]
[393422643,1762645844892,-500.0,0.00024696,2]
[393422644,1762645844901,-243.25426181,0.00024696,2]
[393422645,1762645844911,-500.0,0.00024696,2]
[393422646,1762645844922,-500.0,0.00024696,2]
[393422647,1762645844931,-500.0,0.00024696,2]
[393422648,1762645844940,-500.0,0.00024696,2]
[393422649,1762645844949,-500.0,0.00024696,2]
[393422650,1762645844958,-500.0,0.00024696,2]
[393422651,1762645844968,-414.57989659,0.00024696,2]
[393422652,1762645844977,-500.0,0.00024696,2]
[393422653,1762645844987,-415.22480011,0.00024696,2]
[393422654,1762645844996,-500.0,0.00024696,2]
[393422655,1762645845005,-500.0,0.00024696,2]
[393422656,1762645845014,-500.0,0.00024696,2]
[393422657,1762645845023,-500.0,0.00024696,2]
[393422658,1762645845032,-500.0,0.00024696,2]
[393422659,1762645845041,-500.0,0.00024696,2]
[393422660,1762645845145,-500.0,0.00024696,2]
[393422661,1762645845159,-500.0,0.00024696,2]
[393422662,1762645845168,-500.0,0.00024696,2]
[393422663,1762645845177,-500.0,0.00024696,2]
[393422664,1762645845186,-500.0,0.00024696,2]
[393422665,1762645845196,-500.0,0.00024696,2]
[393422666,1762645845206,-500.0,0.00024696,2]
[393422667,1762645845216,-500.0,0.00024696,2]
[393422668,1762645845225,-500.0,0.00024696,2]
[393422669,1762645845235,-594.14812027,0.00024696,2]
[393422670,1762645845244,-500.0,0.00024696,2]
[393422671,1762645845254,-500.0,0.00024696,2]
[393422672,1762645845264,-500.0,0.00024696,2]
[393422673,1762645845273,-500.0,0.00024696,2]
[393422674,1762645845283,-500.0,0.00024696,2]
[393422675,1762645845292,-500.0,0.00024696,2]
[393422676,1762645845301,-500.0,0.00024696,2]
[393422677,1762645845311,-500.0,0.00024696,2]
[393422678,1762645845321,-500.0,0.00024696,2]
[393422679,1762645845330,-500.0,0.00024696,2]
[393422680,1762645845339,-500.0,0.00024696,2]
[393422681,1762645845348,-500.0,0.00024696,2]
[393422682,1762645845358,-500.0,0.00024696,2]
[393422683,1762645845367,-500.0,0.00024696,2]
[393422684,1762645845376,-500.0,0.00024696,2]
[393422685,1762645845386,-500.0,0.00024696,2]
[393422686,1762645845396,-160.81825461,0.00024696,2]
[393422687,1762645845405,-500.0,0.00024696,2]
[393422688,1762645845415,-500.0,0.00024696,2]
[393422689,1762645845425,-500.0,0.00024696,2]
[393422690,1762645845435,-500.0,0.00024696,2]
[393422691,1762645845445,-500.0,0.00024696,2]
[393422692,1762645845455,-500.0,0.00024696,2]
[393422693,1762645845464,-500.0,0.00024696,2]
[393422695,1762645845474,-500.0,0.00024696,2]
[393422697,1762645845483,-500.0,0.00024696,2]
[393422699,1762645845496,-500.0,0.00024696,2]
[393422701,1762645845506,-500.0,0.00024696,2]
[393422703,1762645845515,-500.0,0.00024696,2]
[393422705,1762645845527,-500.0,0.00024696,2]
[393422707,1762645845536,-500.0,0.00024696,2]
[393422709,1762645845546,-500.0,0.00024696,2]
[393422711,1762645845555,-500.0,0.00024696,2]
[393422713,1762645845565,-500.0,0.00024696,2]
[393422715,1762645845574,-500.0,0.00024696,2]
[393422716,1762645845583,-500.0,0.00024696,2]
[393422717,1762645845593,-500.0,0.00024696,2]
[393422719,1762645845602,-500.0,0.00024696,2]
[393422720,1762645845611,-500.0,0.00024696,2]
[393422722,1762645845620,-500.0,0.00024696,2]
[393422724,1762645845630,-500.0,0.00024696,2]
[393422726,1762645845640,-500.0,0.00024696,2]
[393422727,1762645845655,-500.0,0.00024696,2]
[393422728,1762645845675,-500.0,0.00024696,2]
[393422729,1762645845688,-151.0,0.00024697,2]
[393422730,1762645845698,-151.0,0.00024697,2]
[393422731,1762645845711,-151.0,0.00024697,2]
[393422732,1762645845720,-151.0,0.00024697,2]
[393422733,1762645845729,-151.0,0.00024697,2]
[393422735,1762645845738,-151.0,0.00024697,2]
[393422736,1762645845748,-151.0,0.00024697,2]
[393422738,1762645845757,-225.69243643,0.00024697,2]
[393422739,1762645845766,-166.874,0.00024698,7]
[393422740,1762645845775,-151.0,0.00024698,2]
[393422741,1762645845784,-43163.89161165,0.00024698,2]
[393422742,1762645845797,-25789.59585579,0.00024698,2]
[393422744,1762646007543,171.4,0.00019616,4]
[393422745,1762646030585,171.4,0.00019616,4]
[393422746,1762646045508,171.4,0.00019616,4]
[393422747,1762646053441,171.4,0.00019616,4]
[393422748,1762646068732,351.878251,0.00013699,2]
[393422750,1762646169004,150.0,0.000137,2]
[393422752,1762646179327,150.0,0.000137,2]
[393422753,1762646191391,150.0,0.000137,2]
[393422754,1762646201906,150.0,0.000137,2]
[393422755,1762646212660,150.0,0.000137,2]
[393422756,1762646223872,150.0,0.000137,2]
[393422758,1762646241352,150.0,0.000137,2]
[393422759,1762646241965,150.0,0.000137,2]
[393422760,1762646254456,150.0,0.000137,2]
[393422761,1762646255059,150.0,0.000137,2]
[393422762,1762646264472,150.0,0.000137,2]
[393422764,1762646455270,2762.54007144,0.00017501,2]
[393422765,1762646463564,171.4,0.00017501,2]
[393422774,1762646645380,5000.0,0.00017501,2]
[393422806,1762646801146,-237.52958368,0.00017714,2]
[393422813,1762646863751,5000.0,0.00017501,2]
[393422818,1762646887105,5000.0,0.00017501,2]
[393422824,1762646909428,5000.0,0.00017501,2]
[393422827,1762646932451,2064.99932528,0.00017501,2]
[393422829,1762646987414,169.0820085,9.924e-05,2]
[393422877,1762647031931,-712.23536786,0.00017614,2]
[393422879,1762647031940,-150.0,0.00017753,2]
[393422881,1762647031950,-1040.12538196,0.00018023,2]
[393422883,1762647031959,-206.68751556,0.00019058,2]
[393422885,1762647031969,-300.0,0.0001949,2]
[393422887,1762647031979,-300.0,0.0001949,2]
[393422889,1762647031988,-300.0,0.0001949,2]
[393422891,1762647031998,-300.0,0.0001949,2]
[393422893,1762647032008,-300.0,0.0001949,2]
[393422895,1762647032018,-1200.0,0.0001949,2]
[393422897,1762647032027,-14058.6147384,0.00019491,2]
[393422899,1762647032037,-177.0,0.00019753,2]
[393422901,1762647032046,-351.878251,0.00020187,2]
[393422903,1762647032056,-216.28946619,0.00020572,2]
[393422905,1762647032066,-300.0,0.00021234,2]
[393422907,1762647032075,-314.0,0.00021234,2]
[393422908,1762647032085,-420.0,0.00021234,2]
[393422910,1762647032095,-1680.0,0.00021336,2]
[393422912,1762647032105,-7158.36955248,0.00021631,2]
[393422914,1762647032114,-710.12918814,0.00021631,2]
[393422916,1762647032124,-500.0,0.00021673,2]
[393422918,1762647032133,-212.80275557,0.00021692,2]
[393422920,1762647032142,-500.0,0.00021692,2]
[393422922,1762647032153,-500.0,0.00021692,2]
[393422924,1762647032162,-500.0,0.00021692,2]
[393422926,1762647032172,-500.0,0.00021692,2]
[393422929,1762647032184,-500.0,0.00021692,2]
[393422931,1762647032198,-500.0,0.00021692,2]
[393422933,1762647032208,-500.0,0.00021692,2]
[393422934,1762647032218,-500.0,0.00021692,2]
[393422936,1762647032228,-500.0,0.00021692,2]
[393422938,1762647032237,-500.0,0.00021692,2]
[393422940,1762647032246,-500.0,0.00021692,2]
[393422942,1762647032255,-500.0,0.00021692,2]
[393422944,1762647032264,-500.0,0.00021692,2]
[393422946,1762647032273,-159.41481203,0.00021692,2]
[393422948,1762647032283,-500.0,0.00021692,2]
[393422950,1762647032292,-500.0,0.00021692,2]
[393422952,1762647032301,-500.0,0.00021692,2]
[393422954,1762647032311,-341.45798966,0.00021692,2]
[393422956,1762647032320,-500.0,0.00021692,2]
[393422958,1762647032329,-253.47494327,0.00021692,2]
[393422962,1762647032353,-246.52505673,0.00021692,2]
[393422964,1762647032362,-269.83680378,0.00021692,2]
[393422966,1762647032373,-230.16319622,0.00021692,2]
[393422969,1762647032383,-287.68182546,0.00021692,2]
[393422971,1762647032392,-29835.2517219,0.00021693,2]
[393422992,1762647036162,200.0,0.000328,120]
[393423010,1762647037933,-25002.9606684,0.00021693,2]
[393423011,1762647037944,-184.827166,0.00021731,2]
[393423012,1762647037954,-204.0,0.00021753,2]
[393423013,1762647037964,-153.57,0.000224,7]
[393423014,1762647037974,-710.12918811,0.00022423,2]
[393423015,1762647037984,-500.0,0.00023033,5]
[393423016,1762647037994,-459.54398201,0.00023033,5]
[393423017,1762647038003,-587.0,0.00023133,2]
[393423018,1762647038013,-710.12918811,0.00023216,2]
[393423019,1762647038021,-500.0,0.00023307,5]
[393423020,1762647038032,-209.85,0.00023379,2]
[393423021,1762647038042,-291.22837485,0.00023479,2]
[393423022,1762647038054,-2970.74239665,0.00023479,2]
[393423023,1762647038065,-1000.0,0.00023576,2]
[393423024,1762647038075,-1000.0,0.00023576,2]
[393423025,1762647038085,-1000.0,0.00023576,2]
[393423026,1762647038096,-1000.0,0.00023576,2]
[393423027,1762647038106,-1000.0,0.00023576,2]
[393423028,1762647038116,-1000.0,0.00023576,2]
[393423029,1762647038126,-1000.0,0.00023576,2]
[393423030,1762647038137,-1000.0,0.00023576,2]
[393423031,1762647038146,-1000.0,0.00023576,2]
[393423032,1762647038157,-1000.0,0.00023576,2]
[393423033,1762647038167,-1000.0,0.00023576,2]
[393423034,1762647038177,-784.58167169,0.00023576,2]
[393423035,1762647038187,-336.05949082,0.00023642,2]
[393423036,1762647038197,-231.0,0.00023753,2]
[393423037,1762647038207,-710.12918811,0.00024008,2]
[393423038,1762647038217,-168.0,0.00024206,2]
[393423039,1762647038228,-235.0,0.00024274,2]
[393423040,1762647038238,-985.0,0.00024283,2]
[393423041,1762647038249,-500.0,0.0002455,2]
[393423042,1762647038260,-865.0,0.00024551,2]
[393423043,1762647038270,-166.874,0.00024551,7]
[393423044,1762647038281,-865.0,0.00024555,2]
[393423045,1762647038291,-1923.793647,0.0002458,5]
[393423046,1762647038301,-1000.0,0.000246,5]
[393423047,1762647038311,-250.0,0.000246,10]
[393423048,1762647038320,-1000.0,0.0002462,5]
[393423049,1762647038330,-1000.0,0.0002464,5]
[393423050,1762647038339,-500.0,0.00024647,2]
[393423051,1762647038349,-7562.4755774,0.00024648,2]
[393423052,1762647038358,-151.0,0.00024648,2]
[393423053,1762647038369,-433.46703428,0.00024651,2]
[393423054,1762647038378,-500.0,0.00024651,2]
[393423055,1762647038388,-500.0,0.00024651,2]
[393423056,1762647038398,-500.0,0.00024651,2]
[393423057,1762647038409,-331.14875729,0.00024651,2]
[393423058,1762647038419,-1000.0,0.0002466,5]
[393423059,1762647038440,-500.0,0.00024673,2]
[393423060,1762647038453,-500.0,0.00024673,2]
[393423061,1762647038612,-500.0,0.00024673,2]
[393423062,1762647038623,-1000.0,0.0002468,5]
[393423063,1762647038632,-522.26,0.0002469,3]
[393423064,1762647038643,-500.0,0.00024695,2]
[393423065,1762647038654,-305.68533864,0.00024696,2]
[393423066,1762647038664,-304.37753841,0.00024696,2]
[393423067,1762647038674,-265.93521807,0.00024696,2]
[393423068,1762647038684,-151.0,0.00024696,2]
[393423069,1762647038694,-157.9847055,0.00024696,2]
[393423070,1762647038705,-500.0,0.00024697,2]
[393423071,1762647038715,-151.0,0.00024697,2]
[393423072,1762647038725,-151.0,0.00024697,2]
[393423073,1762647038734,-151.0,0.00024697,2]
[393423074,1762647038745,-500.0,0.00024697,2]
[393423075,1762647038754,-500.0,0.00024697,2]
[393423076,1762647038764,-500.0,0.00024697,2]
[393423077,1762647038774,-500.0,0.00024697,2]
[393423078,1762647038784,-500.0,0.00024697,2]
[393423079,1762647038794,-189.68302466,0.00024697,2]
[393423080,1762647038807,-310.31697534,0.00024697,2]
[393423081,1762647038816,-500.0,0.00024697,2]
[393423082,1762647038826,-500.0,0.00024697,2]
[393423083,1762647038836,-500.0,0.00024697,2]
[393423084,1762647038846,-500.0,0.00024697,2]
[393423085,1762647038855,-500.0,0.00024697,2]
[393423086,1762647038865,-500.0,0.00024697,2]
[393423087,1762647038876,-500.0,0.00024697,2]
[393423088,1762647038886,-500.0,0.00024697,2]
[393423089,1762647038896,-500.0,0.00024697,2]
[393423090,1762647038906,-500.0,0.00024697,2]
[393423091,1762647038916,-500.0,0.00024697,2]
[393423092,1762647038927,-500.0,0.00024697,2]
[393423093,1762647038937,-1048.90500001,0.00024697,2]
[393423094,1762647038947,-198.0,0.00024697,2]
[393423095,1762647038956,-151.0,0.00024697,2]
[393423096,1762647038966,-151.0,0.00024697,2]
[393423097,1762647038979,-151.0,0.00024697,2]
[393423098,1762647038989,-277.7007064,0.00024697,2]
[393423099,1762647038999,-2270.076504,0.00024698,2]
[393423100,1762647039009,-1000.0,0.000247,5]
[393423101,1762647039019,-250.0,0.000247,10]
[393423102,1762647039028,-174.07,0.0002471,3]
[393423103,1762647039038,-1000.0,0.0002472,5]
[393423104,1762647039048,-1000.0,0.0002474,5]
[393423105,1762647039058,-500.0,0.00024752,2]
[393423106,1762647039069,-151.0,0.00024752,2]
[393423107,1762647039079,-151.0,0.00024752,2]
[393423108,1762647039090,-151.0,0.00024752,2]
[393423109,1762647039100,-1000.0,0.0002476,5]
[393423110,1762647039110,-157.512304,0.0002476,2]
[393423111,1762647039120,-1000.0,0.0002478,5]
[393423112,1762647039130,-865.0,0.00024785,7]
[393423113,1762647039140,-500.0,0.00024795,2]
[393423114,1762647039150,-500.0,0.00024799,2]
[393423115,1762647039161,-500.0,0.00024799,2]
[393423116,1762647039171,-702.09,0.000248,7]
[393423117,1762647039181,-1000.0,0.000248,5]
[393423118,1762647039190,-250.0,0.000248,10]
[393423119,1762647039200,-710.12918811,0.000248,2]
[393423120,1762647039209,-18.25776194,0.00024807,2]
[393423125,1762647039916,-481.74223806,0.00024807,2]
[393423126,1762647039927,-198.0,0.00024807,2]
[393423127,1762647039937,-151.0,0.00024807,2]
[393423128,1762647039947,-248.08703416,0.00024807,2]
[393423129,1762647039956,-235.0,0.00024828,2]
[393423130,1762647039966,-168.0,0.00024836,2]
[393423131,1762647039976,-213.64977058,0.00024861,2]
[393423132,1762647039986,-183.304,0.00024861,2]
[393423133,1762647039996,-500.0,0.00024873,2]
[393423134,1762647040005,-500.0,0.00024873,2]
[393423135,1762647040015,-500.0,0.00024873,2]
[393423136,1762647040025,-500.0,0.00024898,2]
[393423137,1762647040035,-200.0,0.00024899,2]
[393423138,1762647040045,-500.0,0.00024899,2]
[393423139,1762647040054,-500.0,0.00024899,2]
[393423140,1762647040064,-500.0,0.00024899,2]
[393423141,1762647040074,-500.0,0.00024899,2]
[393423142,1762647040083,-413.45339151,0.00024899,2]
[393423143,1762647040093,-532.02850704,0.00024899,2]
[393423144,1762647040102,-500.0,0.00024899,2]
[393423145,1762647040111,-500.0,0.00024899,2]
[393423146,1762647040120,-500.0,0.00024899,2]
[393423147,1762647040130,-500.0,0.00024899,2]
[393423148,1762647040143,-500.0,0.00024899,2]
[393423149,1762647040152,-500.0,0.00024899,2]
[393423150,1762647040162,-521.12943612,0.00024899,2]
[393423151,1762647040172,-250.0,0.000249,10]
[393423152,1762647040181,-40470.98770539,0.000249,2]
[393423185,1762647046235,-2024.0,0.000249,2]
[393423186,1762647046483,-8738.07128564,0.000249,2]
[393423187,1762647046494,-1598.57426572,0.000249,2]
[393423208,1762647791941,500000.000001,0.000328,120]
[393423579,1762648232039,-150.0,0.00020578,2]
[393423581,1762648232050,-165.451101,0.00021038,4]
[393423583,1762648232063,-57.15359863,0.00021965,2]
[393423586,1762648232075,-102.84640137,0.00021965,2]
[393423588,1762648232085,-563.22113261,0.000225,2]
[393423590,1762648232097,-461.8277514,0.000225,2]
[393423592,1762648232107,-177.0,0.00022578,2]
[393423594,1762648232118,-250.0,0.00022999,2]
[393423596,1762648232129,-1200.0,0.00022999,2]
[393423598,1762648232140,-300.0,0.00023,2]
[393423600,1762648232151,-5346.92399225,0.00023,2]
[393423603,1762648232163,-3113.19244501,0.00023176,2]
[393423606,1762648232186,-289.11991208,0.00023176,2]
[393423700,1762648237917,-1148.40320231,0.00023176,2]
[393423701,1762648237929,-207.10089059,0.00023763,2]
[393423703,1762648237941,-500.0,0.0002455,2]
[393423704,1762648237952,-204.0,0.00024578,2]
[393423706,1762648237963,-500.0,0.00024647,2]
[393423707,1762648237975,-1533.06752046,0.0002465,2]
[393423715,1762648238143,-2000.0,0.00024672,2]
[393423717,1762648238163,-478.68339253,0.00024754,2]
[393423718,1762648238174,-331.13353298,0.00024754,2]
[393423719,1762648238184,-850.14170514,0.00024754,2]
[393423720,1762648238194,-500.0,0.00024773,2]
[393423722,1762648238204,-500.0,0.00024773,2]
[393423723,1762648238215,-500.0,0.00024773,2]
[393423724,1762648238226,-500.0,0.00024773,2]
[393423726,1762648238236,-348.14,0.0002479,3]
[393423727,1762648238247,-601.87,0.0002479,10]